[Event "*** Titled Tuesday Blitz"]
[Site "Chess.com"]
[Date "2020.05.05"]
[Round "4"]
[White "Rud_Makarian"]
[Black "Nbk90"]
[Result "1-0"]
[WhiteElo "2739"]
[BlackElo "2494"]
[TimeControl "180+1"]
[EndTime "10:41:18 PDT"]
[Termination "Rud_Makarian won on time"]

1. d4 {[%clk 0:03:00.9]} 1... Nf6 {[%clk 0:02:57.6]} 2. c4 {[%clk 0:03:01.8]}
2... e6 {[%clk 0:02:57.2]} 3. Nf3 {[%clk 0:03:01.7]} 3... d5 {[%clk 0:02:55.9]}
4. Nc3 {[%clk 0:03:02.1]} 4... Nbd7 {[%clk 0:02:54.9]} 5. cxd5 {[%clk
0:03:00.3]} 5... exd5 {[%clk 0:02:54.4]} 6. Bf4 {[%clk 0:03:00.8]} 6... c6
{[%clk 0:02:52.7]} 7. Qc2 {[%clk 0:02:55.3]} 7... Nb6 {[%clk 0:02:50.9]} 8. h3
{[%clk 0:02:53.8]} 8... g6 {[%clk 0:02:48.5]} 9. e3 {[%clk 0:02:53.1]} 9... Bf5
{[%clk 0:02:48]} 10. Bd3 {[%clk 0:02:52.3]} 10... Bxd3 {[%clk 0:02:47.3]} 11.
Qxd3 {[%clk 0:02:53.2]} 11... Be7 {[%clk 0:02:42]} 12. Bh6 {[%clk 0:02:40.4]}
12... Bf8 {[%clk 0:02:34.4]} 13. Bf4 {[%clk 0:02:38.2]} 13... Be7 {[%clk
0:02:32.9]} 14. Ne5 {[%clk 0:02:23.8]} 14... Nh5 {[%clk 0:02:20.9]} 15. Bh2
{[%clk 0:02:20]} 15... O-O {[%clk 0:02:19]} 16. g4 {[%clk 0:02:17.4]} 16... Ng7
{[%clk 0:02:17.7]} 17. O-O-O {[%clk 0:02:13.6]} 17... Bd6 {[%clk 0:01:58.9]} 18.
f4 {[%clk 0:01:46.3]} 18... f6 {[%clk 0:01:54.7]} 19. Nf3 {[%clk 0:01:45]} 19...
Re8 {[%clk 0:01:52.6]} 20. h4 {[%clk 0:01:27.8]} 20... Qe7 {[%clk 0:01:46]} 21.
Rde1 {[%clk 0:01:24.4]} 21... Bb4 {[%clk 0:01:45.3]} 22. h5 {[%clk 0:01:20.4]}
22... Bxc3 {[%clk 0:01:41.5]} 23. Qxc3 {[%clk 0:01:17.4]} 23... gxh5 {[%clk
0:01:30.4]} 24. gxh5 {[%clk 0:01:11]} 24... Nf5 {[%clk 0:01:27.2]} 25. h6 {[%clk
0:00:44.8]} 25... Kh8 {[%clk 0:01:25.2]} 26. Rhg1 {[%clk 0:00:40.1]} 26... Rg8
{[%clk 0:01:08.8]} 27. Qd3 {[%clk 0:00:27.9]} 27... Nd6 {[%clk 0:01:04.9]} 28.
f5 {[%clk 0:00:26.5]} 28... Ne4 {[%clk 0:01:02.2]} 29. Ne5 {[%clk 0:00:24.4]}
29... Nd7 {[%clk 0:00:56.8]} 30. Ng6+ {[%clk 0:00:20.5]} 30... hxg6 {[%clk
0:00:55.3]} 31. fxg6 {[%clk 0:00:21.4]} 31... Qe6 {[%clk 0:00:45.2]} 32. Bf4
{[%clk 0:00:21]} 32... Qf5 {[%clk 0:00:42.2]} 33. g7+ {[%clk 0:00:21]} 33... Kh7
{[%clk 0:00:40.7]} 34. Ref1 {[%clk 0:00:21.5]} 34... Qe6 {[%clk 0:00:30.3]} 35.
Qe2 {[%clk 0:00:21.1]} 35... f5 {[%clk 0:00:26.5]} 36. Qh5 {[%clk 0:00:20.2]}
36... Rae8 {[%clk 0:00:14.9]} 37. Be5 {[%clk 0:00:19.2]} 37... Nxe5 {[%clk
0:00:14]} 38. dxe5 {[%clk 0:00:18.9]} 38... d4 {[%clk 0:00:10.3]} 39. Rxf5
{[%clk 0:00:16.7]} 39... d3 {[%clk 0:00:09.5]} 40. Rf6 {[%clk 0:00:15.8]} 40...
d2+ {[%clk 0:00:07.3]} 41. Kb1 {[%clk 0:00:12.9]} 41... d1=Q+ {[%clk 0:00:06.4]}
42. Qxd1 {[%clk 0:00:12.8]} 42... Qxe5 {[%clk 0:00:03.6]} 43. Rf7 {[%clk
0:00:08.8]} 1-0

[Event "*** Titled Tuesday Blitz"]
[Site "Chess.com"]
[Date "2020.05.05"]
[Round "4"]
[White "Vuk2000"]
[Black "KaterinaMiroshnik"]
[Result "1-0"]
[WhiteElo "2636"]
[BlackElo "2433"]
[TimeControl "180+1"]
[EndTime "10:41:18 PDT"]
[Termination "Vuk2000 won by checkmate"]

1. d4 {[%clk 0:03:00.9]} 1... e6 {[%clk 0:02:58.7]} 2. Bf4 {[%clk 0:03:00.9]}
2... Nf6 {[%clk 0:02:59.6]} 3. e3 {[%clk 0:03:00]} 3... d5 {[%clk 0:03:00.1]} 4.
Nf3 {[%clk 0:03:00.1]} 4... Bd6 {[%clk 0:03:00.4]} 5. Bg3 {[%clk 0:02:59.5]}
5... c5 {[%clk 0:03:00.8]} 6. c3 {[%clk 0:02:57.7]} 6... O-O {[%clk 0:03:00.7]}
7. Nbd2 {[%clk 0:02:57.5]} 7... Nc6 {[%clk 0:03:00.6]} 8. Bb5 {[%clk 0:02:48.4]}
8... Ne7 {[%clk 0:03:00.2]} 9. Bd3 {[%clk 0:02:44.9]} 9... b6 {[%clk 0:02:58.5]}
10. O-O {[%clk 0:02:43.4]} 10... Bb7 {[%clk 0:02:58.3]} 11. Qe2 {[%clk
0:02:42.9]} 11... Ne4 {[%clk 0:02:56.8]} 12. Ba6 {[%clk 0:02:36.7]} 12... Bxa6
{[%clk 0:02:52.4]} 13. Qxa6 {[%clk 0:02:34.5]} 13... Bxg3 {[%clk 0:02:52.4]} 14.
hxg3 {[%clk 0:02:25.8]} 14... Nd6 {[%clk 0:02:48.6]} 15. Rfe1 {[%clk 0:02:21.7]}
15... Qc7 {[%clk 0:02:44.9]} 16. Rad1 {[%clk 0:02:21.1]} 16... Rac8 {[%clk
0:02:39.7]} 17. e4 {[%clk 0:02:20.7]} 17... dxe4 {[%clk 0:02:38.5]} 18. Nxe4
{[%clk 0:02:20.1]} 18... Nxe4 {[%clk 0:02:38.6]} 19. Rxe4 {[%clk 0:02:19.7]}
19... c4 {[%clk 0:02:36.6]} 20. Qa4 {[%clk 0:02:11.6]} 20... Nd5 {[%clk
0:02:35.6]} 21. Rde1 {[%clk 0:02:03.9]} 21... Qb7 {[%clk 0:02:29.4]} 22. a3
{[%clk 0:01:52.6]} 22... b5 {[%clk 0:02:24.2]} 23. Qc2 {[%clk 0:01:52.3]} 23...
a5 {[%clk 0:02:19.8]} 24. Rh4 {[%clk 0:01:52.3]} 24... Nf6 {[%clk 0:02:16.7]}
25. g4 {[%clk 0:01:52.4]} 25... g6 {[%clk 0:02:14.5]} 26. Qd2 {[%clk 0:01:46.3]}
26... Nd5 {[%clk 0:02:03.3]} 27. Qh6 {[%clk 0:01:39.9]} 27... f6 {[%clk
0:01:58.5]} 28. g5 {[%clk 0:01:16.7]} 28... Qg7 {[%clk 0:01:54.3]} 29. Qxg7+
{[%clk 0:00:59.2]} 29... Kxg7 {[%clk 0:01:54.1]} 30. gxf6+ {[%clk 0:00:44.4]}
30... Rxf6 {[%clk 0:01:38.5]} 31. Ng5 {[%clk 0:00:43]} 31... h6 {[%clk
0:01:38.7]} 32. Nxe6+ {[%clk 0:00:41.8]} 32... Kh7 {[%clk 0:01:39]} 33. Rhe4
{[%clk 0:00:37.6]} 33... b4 {[%clk 0:01:30.5]} 34. axb4 {[%clk 0:00:36]} 34...
axb4 {[%clk 0:01:30.6]} 35. Re5 {[%clk 0:00:36.1]} 35... bxc3 {[%clk 0:01:23.7]}
36. bxc3 {[%clk 0:00:19.3]} 36... Nxc3 {[%clk 0:01:22.2]} 37. Nc5 {[%clk
0:00:19.4]} 37... Rf7 {[%clk 0:01:15.4]} 38. Re7 {[%clk 0:00:17.5]} 38... Rc7
{[%clk 0:01:14.1]} 39. Re8 {[%clk 0:00:16.5]} 39... Nd5 {[%clk 0:01:08]} 40. Rd8
{[%clk 0:00:16.1]} 40... Nf6 {[%clk 0:01:04.9]} 41. Rc1 {[%clk 0:00:15.8]} 41...
Ng4 {[%clk 0:00:50.7]} 42. f3 {[%clk 0:00:10.1]} 42... Ne3 {[%clk 0:00:46.7]}
43. Rc3 {[%clk 0:00:10.2]} 43... Rce7 {[%clk 0:00:44.4]} 44. Ne4 {[%clk
0:00:09.7]} 44... Nf5 {[%clk 0:00:34.1]} 45. Rxc4 {[%clk 0:00:09.8]} 45... Ra7
{[%clk 0:00:34.8]} 46. Rcc8 {[%clk 0:00:08.4]} 46... g5 {[%clk 0:00:32]} 47. d5
{[%clk 0:00:08.2]} 47... Nh4 {[%clk 0:00:26.2]} 48. Rh8+ {[%clk 0:00:07.1]}
48... Kg6 {[%clk 0:00:26.1]} 49. Rcg8+ {[%clk 0:00:08]} 49... Kh5 {[%clk
0:00:24.5]} 50. g4# {[%clk 0:00:05.5]} 1-0

[Event "*** Titled Tuesday Blitz"]
[Site "Chess.com"]
[Date "2020.05.05"]
[Round "4"]
[White "Chessalary"]
[Black "talman67"]
[Result "1-0"]
[WhiteElo "2176"]
[BlackElo "2527"]
[TimeControl "180+1"]
[EndTime "10:41:18 PDT"]
[Termination "Chessalary won on time"]

1. e4 {[%clk 0:03:00.7]} 1... e5 {[%clk 0:02:59.7]} 2. Nf3 {[%clk 0:03:00.5]}
2... Nc6 {[%clk 0:03:00.1]} 3. Bc4 {[%clk 0:03:00.3]} 3... Bc5 {[%clk
0:02:59.4]} 4. c3 {[%clk 0:03:00.7]} 4... Nf6 {[%clk 0:02:59]} 5. d3 {[%clk
0:03:01]} 5... d6 {[%clk 0:02:58.4]} 6. O-O {[%clk 0:03:00.5]} 6... a5 {[%clk
0:02:58.8]} 7. Bb3 {[%clk 0:02:57.3]} 7... h6 {[%clk 0:02:39.8]} 8. h3 {[%clk
0:02:56.1]} 8... O-O {[%clk 0:02:37.4]} 9. Bc2 {[%clk 0:02:55]} 9... Re8 {[%clk
0:02:23.3]} 10. d4 {[%clk 0:02:45.9]} 10... Bb6 {[%clk 0:02:08.4]} 11. Re1
{[%clk 0:02:31.3]} 11... Bd7 {[%clk 0:01:44.4]} 12. a3 {[%clk 0:02:12.2]} 12...
Qb8 {[%clk 0:01:12.5]} 13. Nbd2 {[%clk 0:01:14.6]} 13... exd4 {[%clk 0:01:11.1]}
14. Nc4 {[%clk 0:01:12.2]} 14... d3 {[%clk 0:01:01.6]} 15. Qxd3 {[%clk 0:01:02]}
15... Bc5 {[%clk 0:00:57.6]} 16. e5 {[%clk 0:00:54.2]} 16... Nxe5 {[%clk
0:00:51.7]} 17. Nfxe5 {[%clk 0:00:49.1]} 17... dxe5 {[%clk 0:00:52.6]} 18. Nxe5
{[%clk 0:00:31.5]} 18... Qa7 {[%clk 0:00:33.3]} 19. Qg3 {[%clk 0:00:27.4]} 19...
Re6 {[%clk 0:00:12]} 20. Bxh6 {[%clk 0:00:09.5]} 20... Bxf2+ {[%clk 0:00:03.6]}
21. Qxf2 {[%clk 0:00:10.4]} 21... Qxf2+ {[%clk 0:00:03.9]} 22. Kxf2 {[%clk
0:00:11.3]} 22... gxh6 {[%clk 0:00:04.8]} 23. Bf5 {[%clk 0:00:11]} 23... Re7
{[%clk 0:00:02.7]} 24. Nxd7 {[%clk 0:00:05.9]} 24... Rxd7 {[%clk 0:00:03.2]} 25.
Bxd7 {[%clk 0:00:05.5]} 25... Nxd7 {[%clk 0:00:04.1]} 26. Re7 {[%clk 0:00:05.9]}
26... Nc5 {[%clk 0:00:01.7]} 27. Rxc7 {[%clk 0:00:06.1]} 27... b6 {[%clk
0:00:01.6]} 28. b4 {[%clk 0:00:04.8]} 28... axb4 {[%clk 0:00:02.5]} 29. cxb4
{[%clk 0:00:05.7]} 29... Ne4+ {[%clk 0:00:02.7]} 30. Kf3 {[%clk 0:00:04.9]}
30... Nd6 {[%clk 0:00:03.2]} 31. Kg4 {[%clk 0:00:04.3]} 31... Kg7 {[%clk
0:00:02.9]} 32. Rd1 {[%clk 0:00:02.6]} 32... Nb5 {[%clk 0:00:03]} 33. Re7 {[%clk
0:00:03.2]} 33... Rxa3 {[%clk 0:00:03.1]} 34. Rdd7 {[%clk 0:00:03.5]} 34... h5+
{[%clk 0:00:03.2]} 35. Kxh5 {[%clk 0:00:02.6]} 35... Kf6 {[%clk 0:00:03.3]} 36.
Rxf7+ {[%clk 0:00:03.5]} 36... Ke6 {[%clk 0:00:03.6]} 37. Rde7+ {[%clk
0:00:04.4]} 37... Kd6 {[%clk 0:00:04.1]} 38. Rd7+ {[%clk 0:00:05.3]} 38... Kc6
{[%clk 0:00:04.2]} 39. Rd2 {[%clk 0:00:04.1]} 39... Rb3 {[%clk 0:00:04.3]} 40.
g4 {[%clk 0:00:04.3]} 40... Rxb4 {[%clk 0:00:04]} 41. g5 {[%clk 0:00:04.7]}
41... Nd4 {[%clk 0:00:03]} 42. Rf6+ {[%clk 0:00:03.8]} 42... Kc5 {[%clk
0:00:02.4]} 43. g6 {[%clk 0:00:04.7]} 43... Rb3 {[%clk 0:00:01.6]} 44. g7 {[%clk
0:00:04.8]} 1-0

[Event "*** Titled Tuesday Blitz"]
[Site "Chess.com"]
[Date "2020.05.05"]
[Round "4"]
[White "MikhailovViacheslav"]
[Black "AvitalBor"]
[Result "0-1"]
[WhiteElo "2587"]
[BlackElo "2837"]
[TimeControl "180+1"]
[EndTime "10:41:21 PDT"]
[Termination "AvitalBor won on time"]

1. Nf3 {[%clk 0:02:57.8]} 1... d5 {[%clk 0:02:59.6]} 2. g3 {[%clk 0:02:58]} 2...
g6 {[%clk 0:02:58]} 3. Bg2 {[%clk 0:02:58.1]} 3... Bg7 {[%clk 0:02:58.7]} 4. d4
{[%clk 0:02:58.1]} 4... c6 {[%clk 0:02:58.7]} 5. O-O {[%clk 0:02:58.2]} 5... Nf6
{[%clk 0:02:59]} 6. c4 {[%clk 0:02:58.2]} 6... dxc4 {[%clk 0:02:59.3]} 7. a4
{[%clk 0:02:54.9]} 7... Ne4 {[%clk 0:02:58.7]} 8. Na3 {[%clk 0:02:50.9]} 8...
Nd6 {[%clk 0:02:58.6]} 9. Ne5 {[%clk 0:02:48.6]} 9... O-O {[%clk 0:02:57.4]} 10.
e4 {[%clk 0:02:28.6]} 10... Na6 {[%clk 0:02:48]} 11. Qe2 {[%clk 0:02:22.8]}
11... Nb4 {[%clk 0:02:24.2]} 12. Rd1 {[%clk 0:02:15.5]} 12... a5 {[%clk
0:02:10.3]} 13. Bd2 {[%clk 0:02:11.1]} 13... Be6 {[%clk 0:01:55.5]} 14. Bc3
{[%clk 0:02:10.2]} 14... Nd3 {[%clk 0:01:41.2]} 15. Nxd3 {[%clk 0:02:06.6]}
15... cxd3 {[%clk 0:01:41.4]} 16. Rxd3 {[%clk 0:02:03.1]} 16... Qb6 {[%clk
0:01:36.5]} 17. e5 {[%clk 0:01:50.2]} 17... Nc4 {[%clk 0:01:32.4]} 18. d5 {[%clk
0:01:47]} 18... cxd5 {[%clk 0:01:18]} 19. Nb5 {[%clk 0:01:32.2]} 19... Rad8
{[%clk 0:01:09.1]} 20. b3 {[%clk 0:01:25.3]} 20... d4 {[%clk 0:01:02]} 21. Rxd4
{[%clk 0:01:09.9]} 21... Nd6 {[%clk 0:00:30.2]} 22. exd6 {[%clk 0:01:05.8]}
22... exd6 {[%clk 0:00:29.2]} 23. Rd3 {[%clk 0:00:53.7]} 23... Bxc3 {[%clk
0:00:29.2]} 24. Rxc3 {[%clk 0:00:51.4]} 24... d5 {[%clk 0:00:29.5]} 25. Rd1
{[%clk 0:00:47.1]} 25... Rfe8 {[%clk 0:00:29.1]} 26. Qd2 {[%clk 0:00:44.4]}
26... Bg4 {[%clk 0:00:23.8]} 27. Re1 {[%clk 0:00:30.9]} 27... Rxe1+ {[%clk
0:00:24.1]} 28. Qxe1 {[%clk 0:00:30.4]} 28... d4 {[%clk 0:00:25]} 29. Rd3 {[%clk
0:00:25.4]} 29... h5 {[%clk 0:00:19.3]} 30. Qd2 {[%clk 0:00:16.6]} 30... Re8
{[%clk 0:00:18.1]} 31. Rxd4 {[%clk 0:00:15.6]} 31... Re2 {[%clk 0:00:18.3]} 32.
Qc3 {[%clk 0:00:07.7]} 32... Qf6 {[%clk 0:00:16.8]} 33. f3 {[%clk 0:00:05.2]}
33... Be6 {[%clk 0:00:11.7]} 34. f4 {[%clk 0:00:04.3]} 34... Kh7 {[%clk
0:00:08.8]} 35. h4 {[%clk 0:00:03.9]} 35... Qf5 {[%clk 0:00:08.9]} 36. Qd3
{[%clk 0:00:03.3]} 36... Qg4 {[%clk 0:00:07.7]} 37. Qf3 {[%clk 0:00:02.7]} 37...
Re1+ {[%clk 0:00:07.6]} 38. Kf2 {[%clk 0:00:02.4]} 38... Rb1 {[%clk 0:00:05.9]}
39. Qxg4 {[%clk 0:00:02.1]} 39... hxg4 {[%clk 0:00:05.8]} 40. Rd2 {[%clk
0:00:01.8]} 40... Rxb3 {[%clk 0:00:05.2]} 41. Nd4 {[%clk 0:00:02.2]} 41... Rb4
{[%clk 0:00:04.7]} 42. Nxe6 {[%clk 0:00:02.6]} 42... fxe6 {[%clk 0:00:05.6]} 43.
Rd7+ {[%clk 0:00:02.8]} 43... Kh6 {[%clk 0:00:06.1]} 44. Rxb7 {[%clk 0:00:02.8]}
44... Rxa4 {[%clk 0:00:06.6]} 45. Bc6 {[%clk 0:00:02.3]} 45... Ra2+ {[%clk
0:00:06.3]} 46. Ke3 {[%clk 0:00:02.5]} 46... Ra3+ {[%clk 0:00:06.6]} 47. Kd4
{[%clk 0:00:02.6]} 47... Rxg3 {[%clk 0:00:07]} 0-1

[Event "*** Titled Tuesday Blitz"]
[Site "Chess.com"]
[Date "2020.05.05"]
[Round "4"]
[White "Gordima"]
[Black "NikolaGry"]
[Result "0-1"]
[WhiteElo "2786"]
[BlackElo "2623"]
[TimeControl "180+1"]
[EndTime "10:41:23 PDT"]
[Termination "NikolaGry won by resignation"]

1. d4 {[%clk 0:03:00.9]} 1... d5 {[%clk 0:02:59.1]} 2. c4 {[%clk 0:03:00.4]}
2... Nc6 {[%clk 0:02:59.3]} 3. Nc3 {[%clk 0:02:59.7]} 3... dxc4 {[%clk
0:02:59.1]} 4. Nf3 {[%clk 0:03:00]} 4... Nf6 {[%clk 0:02:58.7]} 5. e3 {[%clk
0:03:00.2]} 5... e6 {[%clk 0:02:51.2]} 6. Bxc4 {[%clk 0:02:59.3]} 6... Bb4
{[%clk 0:02:50.2]} 7. O-O {[%clk 0:02:58.7]} 7... O-O {[%clk 0:02:49.5]} 8. a3
{[%clk 0:02:54.4]} 8... Bd6 {[%clk 0:02:49.3]} 9. Nb5 {[%clk 0:02:49.5]} 9... a6
{[%clk 0:02:45.9]} 10. Nxd6 {[%clk 0:02:49.3]} 10... cxd6 {[%clk 0:02:44.6]} 11.
b3 {[%clk 0:02:46.1]} 11... d5 {[%clk 0:02:24.5]} 12. Bd3 {[%clk 0:02:44.2]}
12... Bd7 {[%clk 0:02:23.8]} 13. Bb2 {[%clk 0:02:42.3]} 13... Rc8 {[%clk
0:02:18.2]} 14. Ne5 {[%clk 0:02:41.7]} 14... Nxe5 {[%clk 0:02:09.2]} 15. dxe5
{[%clk 0:02:42.6]} 15... Ne4 {[%clk 0:02:09]} 16. Rc1 {[%clk 0:02:39.6]} 16...
Bb5 {[%clk 0:01:54.6]} 17. Bxb5 {[%clk 0:02:35.1]} 17... axb5 {[%clk 0:01:51.8]}
18. Bd4 {[%clk 0:02:26.5]} 18... Rxc1 {[%clk 0:01:38.7]} 19. Qxc1 {[%clk
0:02:26.5]} 19... Qd7 {[%clk 0:01:25.1]} 20. Qb2 {[%clk 0:01:37.5]} 20... Rc8
{[%clk 0:01:17.2]} 21. Rc1 {[%clk 0:01:28.3]} 21... h5 {[%clk 0:00:48.2]} 22. f3
{[%clk 0:01:24]} 22... Ng5 {[%clk 0:00:46.4]} 23. Rc3 {[%clk 0:01:22.3]} 23...
Nh7 {[%clk 0:00:41.3]} 24. Qc2 {[%clk 0:01:20.7]} 24... Rxc3 {[%clk 0:00:40.9]}
25. Qxc3 {[%clk 0:01:21.6]} 25... Nf8 {[%clk 0:00:40.2]} 26. Qc5 {[%clk
0:01:17.1]} 26... Ng6 {[%clk 0:00:37.3]} 27. g3 {[%clk 0:00:54]} 27... f6 {[%clk
0:00:30.9]} 28. exf6 {[%clk 0:00:49.9]} 28... e5 {[%clk 0:00:31]} 29. Bb2 {[%clk
0:00:33.3]} 29... gxf6 {[%clk 0:00:31]} 30. Kg2 {[%clk 0:00:30]} 30... Kf7
{[%clk 0:00:29.8]} 31. Qc2 {[%clk 0:00:23]} 31... f5 {[%clk 0:00:26.8]} 32. f4
{[%clk 0:00:20.4]} 32... d4 {[%clk 0:00:21.8]} 33. exd4 {[%clk 0:00:16.2]} 33...
exf4 {[%clk 0:00:21.1]} 34. Qe2 {[%clk 0:00:11.1]} 34... h4 {[%clk 0:00:18.4]}
35. gxh4 {[%clk 0:00:09]} 35... f3+ {[%clk 0:00:16.4]} 36. Kxf3 {[%clk
0:00:07.4]} 36... f4 {[%clk 0:00:15.9]} 37. Kf2 {[%clk 0:00:03.8]} 37... Qh3
{[%clk 0:00:15.9]} 38. Qf3 {[%clk 0:00:01.2]} 38... Qxh2+ {[%clk 0:00:15.4]} 39.
Qg2 {[%clk 0:00:01.8]} 39... Qxh4+ {[%clk 0:00:15.5]} 40. Ke2 {[%clk 0:00:01.7]}
40... Qh5+ {[%clk 0:00:14.1]} 41. Kd2 {[%clk 0:00:02.3]} 41... f3 {[%clk
0:00:13.9]} 42. Qf2 {[%clk 0:00:02.8]} 42... Qg5+ {[%clk 0:00:13.3]} 43. Kd3
{[%clk 0:00:03.2]} 43... Qf4 {[%clk 0:00:13.1]} 44. Bc3 {[%clk 0:00:02.5]} 44...
Nh4 {[%clk 0:00:12.2]} 45. Bd2 {[%clk 0:00:02.6]} 45... Qf5+ {[%clk 0:00:12.6]}
46. Kc3 {[%clk 0:00:03]} 46... Ng2 {[%clk 0:00:12.8]} 47. Kb4 {[%clk 0:00:02.9]}
47... Qe4 {[%clk 0:00:11.9]} 48. Qg3 {[%clk 0:00:02.5]} 48... Qe2 {[%clk
0:00:09.3]} 49. Qc7+ {[%clk 0:00:01.9]} 49... Kg6 {[%clk 0:00:09]} 50. Qd6+
{[%clk 0:00:01.9]} 50... Kf5 {[%clk 0:00:08.5]} 51. Qe5+ {[%clk 0:00:01.9]}
51... Qxe5 {[%clk 0:00:08.2]} 52. dxe5 {[%clk 0:00:02.8]} 52... f2 {[%clk
0:00:08.4]} 0-1

[Event "*** Titled Tuesday Blitz"]
[Site "Chess.com"]
[Date "2020.05.05"]
[Round "4"]
[White "Philosopherrr"]
[Black "Berardino"]
[Result "1-0"]
[WhiteElo "2487"]
[BlackElo "2648"]
[TimeControl "180+1"]
[EndTime "10:41:23 PDT"]
[Termination "Philosopherrr won on time"]

1. e4 {[%clk 0:03:00.8]} 1... c5 {[%clk 0:02:56]} 2. Nf3 {[%clk 0:03:00.3]} 2...
b6 {[%clk 0:02:56.6]} 3. d4 {[%clk 0:02:59]} 3... cxd4 {[%clk 0:02:57.5]} 4.
Nxd4 {[%clk 0:02:58.6]} 4... Bb7 {[%clk 0:02:57.9]} 5. Nc3 {[%clk 0:02:58.2]}
5... Nf6 {[%clk 0:02:58.4]} 6. Bd3 {[%clk 0:02:55.7]} 6... Nc6 {[%clk
0:02:57.9]} 7. Nxc6 {[%clk 0:02:54.9]} 7... Bxc6 {[%clk 0:02:58.8]} 8. O-O
{[%clk 0:02:55.6]} 8... e6 {[%clk 0:02:58.9]} 9. e5 {[%clk 0:02:54.2]} 9... Nd5
{[%clk 0:02:58.5]} 10. Ne4 {[%clk 0:02:53.6]} 10... Qc7 {[%clk 0:02:49.4]} 11.
c4 {[%clk 0:02:42.3]} 11... Nb4 {[%clk 0:02:46.6]} 12. Bf4 {[%clk 0:02:42.1]}
12... Nxd3 {[%clk 0:02:41.2]} 13. Qxd3 {[%clk 0:02:41.8]} 13... Rc8 {[%clk
0:02:29.9]} 14. Rac1 {[%clk 0:02:36.7]} 14... Qb7 {[%clk 0:02:26.3]} 15. f3
{[%clk 0:02:35]} 15... Bxe4 {[%clk 0:02:22.3]} 16. fxe4 {[%clk 0:02:28.1]} 16...
Bc5+ {[%clk 0:02:21.9]} 17. Kh1 {[%clk 0:02:28.1]} 17... O-O {[%clk 0:02:21.7]}
18. a3 {[%clk 0:02:27.6]} 18... a5 {[%clk 0:02:21]} 19. Qf3 {[%clk 0:02:19.5]}
19... a4 {[%clk 0:02:11.5]} 20. Rcd1 {[%clk 0:02:16.7]} 20... Be7 {[%clk
0:01:53.3]} 21. Qd3 {[%clk 0:02:16]} 21... Rc7 {[%clk 0:01:49.9]} 22. Qc2 {[%clk
0:02:06.7]} 22... Qc6 {[%clk 0:01:49.6]} 23. Rf3 {[%clk 0:01:54.3]} 23... Rcc8
{[%clk 0:01:38.9]} 24. Rc3 {[%clk 0:01:45.6]} 24... f5 {[%clk 0:01:32.3]} 25.
exf6 {[%clk 0:01:42.4]} 25... Bxf6 {[%clk 0:01:28.4]} 26. e5 {[%clk 0:01:41.4]}
26... Be7 {[%clk 0:01:27.4]} 27. Bg3 {[%clk 0:01:35.6]} 27... Rf7 {[%clk
0:01:20.2]} 28. h3 {[%clk 0:01:34.9]} 28... Rcf8 {[%clk 0:01:18.7]} 29. Qe2
{[%clk 0:01:27.8]} 29... Bc5 {[%clk 0:01:15.7]} 30. Rcd3 {[%clk 0:01:25.1]}
30... h6 {[%clk 0:01:12.5]} 31. Kh2 {[%clk 0:01:21.8]} 31... Bf2 {[%clk
0:00:52.8]} 32. Qg4 {[%clk 0:01:18.8]} 32... Bxg3+ {[%clk 0:00:43.7]} 33. Qxg3
{[%clk 0:01:16.2]} 33... Qxc4 {[%clk 0:00:41.2]} 34. Rxd7 {[%clk 0:01:15.3]}
34... Qf4 {[%clk 0:00:33.5]} 35. Rxf7 {[%clk 0:01:12]} 35... Rxf7 {[%clk
0:00:31.7]} 36. Rd6 {[%clk 0:01:04.5]} 36... Qc4 {[%clk 0:00:12.5]} 37. Rxb6
{[%clk 0:00:58.9]} 37... Kh7 {[%clk 0:00:12.8]} 38. Rb4 {[%clk 0:00:56.9]} 38...
Qc1 {[%clk 0:00:11.5]} 39. Qd3+ {[%clk 0:00:51.1]} 39... g6 {[%clk 0:00:11.6]}
40. Rg4 {[%clk 0:00:48.6]} 40... Rg7 {[%clk 0:00:10.1]} 41. Rxa4 {[%clk
0:00:47.1]} 41... h5 {[%clk 0:00:09.5]} 42. h4 {[%clk 0:00:45.9]} 42... Qe1
{[%clk 0:00:08.9]} 43. Qg3 {[%clk 0:00:45.1]} 43... Qd1 {[%clk 0:00:08]} 44. Rf4
{[%clk 0:00:40.3]} 44... Rc7 {[%clk 0:00:07]} 45. Qf3 {[%clk 0:00:38.7]} 45...
Qe1 {[%clk 0:00:05.3]} 46. Rf7+ {[%clk 0:00:38]} 46... Rxf7 {[%clk 0:00:05.8]}
47. Qxf7+ {[%clk 0:00:38]} 47... Kh6 {[%clk 0:00:06.3]} 48. Qf4+ {[%clk
0:00:38.4]} 48... Kh7 {[%clk 0:00:06.6]} 49. b4 {[%clk 0:00:38.4]} 49... Qd1
{[%clk 0:00:05.8]} 50. b5 {[%clk 0:00:38]} 50... Qd5 {[%clk 0:00:05.8]} 51. a4
{[%clk 0:00:38.1]} 51... Qb3 {[%clk 0:00:05.5]} 52. Qd4 {[%clk 0:00:35.8]} 52...
Qb1 {[%clk 0:00:03.4]} 53. b6 {[%clk 0:00:35.2]} 1-0